fUSD/lending_fUSD_20250523
["ID","MTS","AMOUNT","RATE_DAILY","PERIOD"]
[362113721,1748002288282,-420.0,0.00028356,4]
[362113722,1748002288292,-420.0,0.00028356,4]
[362113723,1748002288302,-421.32,0.00028356,4]
[362113724,1748002288311,-420.0,0.00028356,4]
[362113725,1748002288321,-420.0,0.00028356,4]
[362113726,1748002288331,-151.95,0.00028356,4]
[362113727,1748002288341,-420.0,0.00028356,4]
[362113728,1748002288351,-420.0,0.00028356,4]
[362113729,1748002288360,-420.0,0.00028356,4]
[362113730,1748002288370,-357.97,0.00028356,4]
[362113731,1748002288379,-420.0,0.00028356,4]
[362113732,1748002288389,-420.0,0.00028356,4]
[362113733,1748002288400,-420.0,0.00028356,4]
[362113734,1748002288410,-420.0,0.00028356,4]
[362113735,1748002288419,-170.52449569,0.00028356,4]
[362113736,1748002288430,-420.0,0.00028356,4]
[362113737,1748002288440,-333.37,0.00028356,4]
[362113738,1748002288450,-420.0,0.00028356,4]
[362113739,1748002288460,-699.81,0.00028356,4]
[362113740,1748002288470,-934.23,0.00028356,4]
[362113741,1748002288480,-360.64,0.00028356,4]
[362113742,1748002288490,-420.0,0.00028356,4]
[362113743,1748002288499,-420.0,0.00028356,4]
[362113744,1748002288511,-279.8428089,0.00028356,4]
[362113745,1748002288522,-420.0,0.00028356,4]
[362113746,1748002288532,-250.0,0.00028356,4]
[362113747,1748002288542,-420.0,0.00028356,4]
[362113748,1748002288552,-420.0,0.00028356,4]
[362113749,1748002288562,-420.0,0.00028356,4]
[362113750,1748002288572,-420.0,0.00028356,4]
[362113751,1748002288581,-380.0,0.00028356,4]
[362113752,1748002288591,-420.0,0.00028356,4]
[362113753,1748002288601,-420.0,0.00028356,4]
[362113754,1748002288611,-420.0,0.00028356,4]
[362113755,1748002288620,-420.0,0.00028356,4]
[362113756,1748002288630,-765.64,0.00028356,4]
[362113757,1748002288640,-420.0,0.00028356,4]
[362113758,1748002288650,-307.64,0.00028356,4]
[362113759,1748002288660,-420.0,0.00028356,4]
[362113760,1748002288670,-289.81,0.00028356,4]
[362113761,1748002288680,-420.0,0.00028356,4]
[362113762,1748002288690,-420.0,0.00028356,4]
[362113763,1748002288700,-420.0,0.00028356,4]
[362113764,1748002288711,-219.95,0.00028356,4]
[362113765,1748002288721,-420.0,0.00028356,4]
[362113766,1748002288731,-420.0,0.00028356,4]
[362113767,1748002288741,-420.0,0.00028356,4]
[362113768,1748002288752,-420.0,0.00028356,4]
[362113769,1748002288767,-420.0,0.00028356,4]
[362113770,1748002288777,-420.0,0.00028356,4]
[362113771,1748002288788,-420.0,0.00028356,4]
[362113772,1748002288799,-420.0,0.00028356,4]
[362113773,1748002288810,-262.85778004,0.00028356,4]
[362113774,1748002288821,-268.03,0.00028356,4]
[362113775,1748002288831,-420.0,0.00028356,4]
[362113776,1748002288843,-420.0,0.00028356,4]
[362113777,1748002288854,-318.52,0.00028356,4]
[362113778,1748002288864,-261.1,0.00028356,4]
[362113779,1748002288875,-420.0,0.00028356,4]
[362113780,1748002288884,-420.0,0.00028356,4]
[362113781,1748002288895,-180.68,0.00028356,4]
[362113782,1748002288905,-420.0,0.00028356,4]
[362113783,1748002288915,-184.91,0.00028356,4]
[362113784,1748002288925,-420.0,0.00028356,4]
[362113785,1748002288935,-1213.63,0.00028356,4]
[362113786,1748002288944,-420.0,0.00028356,4]
[362113787,1748002288954,-544.08,0.00028356,4]
[362113788,1748002288964,-2301.13,0.00028356,4]
[362113789,1748002288974,-420.0,0.00028356,4]
[362113790,1748002288984,-420.0,0.00028356,4]
[362113791,1748002288993,-2104.51,0.00028356,4]
[362113792,1748002289005,-411.73,0.00028356,4]
[362113793,1748002289016,-1056.15,0.00028356,4]
[362113794,1748002289027,-420.0,0.00028356,4]
[362113795,1748002289038,-1235.93,0.00028356,4]
[362113796,1748002289048,-420.0,0.00028356,4]
[362113797,1748002289059,-420.0,0.00028356,4]
[362113798,1748002289069,-420.0,0.00028356,4]
[362113799,1748002289080,-820.55,0.00028356,4]
[362113800,1748002289090,-420.0,0.00028356,4]
[362113801,1748002289100,-2942.65,0.00028356,4]
[362113802,1748002289109,-468.41,0.00028356,4]
[362113803,1748002289119,-3091.64,0.00028356,4]
[362113804,1748002289129,-420.0,0.00028356,4]
[362113805,1748002289139,-824.71,0.00028356,4]
[362113806,1748002289149,-1143.69,0.00028356,2]
[362113807,1748002289159,-420.0,0.00028356,4]
[362113808,1748002289169,-420.0,0.00028356,4]
[362113809,1748002289179,-589.55,0.00028356,4]
[362113810,1748002289189,-930.62,0.00028356,4]
[362113811,1748002289200,-420.0,0.00028356,4]
[362113812,1748002289211,-420.0,0.00028356,4]
[362113813,1748002289221,-420.0,0.00028356,4]
[362113814,1748002289231,-1759.35,0.00028356,4]
[362113815,1748002289240,-420.0,0.00028356,4]
[362113816,1748002289251,-187.26,0.00028356,4]
[362113817,1748002289262,-420.0,0.00028356,4]
[362113818,1748002289272,-420.0,0.00028356,4]
[362113819,1748002289282,-420.0,0.00028356,4]
[362113820,1748002289292,-420.0,0.00028356,4]
[362113821,1748002289302,-177.34,0.00028356,4]
[362113822,1748002289311,-420.0,0.00028356,4]
[362113823,1748002289321,-420.0,0.00028356,4]
[362113824,1748002289331,-162.75,0.00028356,4]
[362113825,1748002289341,-420.0,0.00028356,4]
[362113826,1748002289350,-420.0,0.00028356,4]
[362113827,1748002289360,-420.0,0.00028356,4]
[362113828,1748002289370,-494.39,0.00028356,4]
[362113829,1748002289380,-2941.71,0.00028356,4]
[362113830,1748002289389,-235.57527954,0.00028356,4]
[362113831,1748002289399,-737.93,0.00028356,4]
[362113832,1748002289410,-420.0,0.00028356,4]
[362113833,1748002289420,-196.17,0.00028356,4]
[362113834,1748002289429,-183.24131663,0.00028356,4]
[362113835,1748002289439,-292.06,0.00028356,4]
[362113836,1748002289450,-420.0,0.00028356,4]
[362113837,1748002289460,-420.0,0.00028356,4]
[362113838,1748002289470,-212.95,0.00028356,4]
[362113839,1748002289479,-420.0,0.00028356,4]
[362113840,1748002289489,-420.0,0.00028356,4]
[362113841,1748002289499,-719.56,0.00028356,4]
[362113842,1748002289515,-238.43,0.00028356,4]
[362113843,1748002289529,-395.36,0.00028356,4]
[362113844,1748002289539,-420.0,0.00028356,4]
[362113845,1748002289550,-420.0,0.00028356,4]
[362113846,1748002289562,-420.0,0.00028356,4]
[362113847,1748002289573,-420.0,0.00028356,4]
[362113848,1748002289583,-420.0,0.00028356,4]
[362113849,1748002289593,-1548.3,0.00028356,2]
[362113850,1748002289604,-586.0,0.00028356,4]
[362113851,1748002289615,-7122.89,0.00028356,4]
[362113852,1748002289626,-420.0,0.00028356,4]
[362113853,1748002289636,-420.0,0.00028356,4]
[362113854,1748002289646,-420.0,0.00028356,4]
[362113855,1748002289656,-420.0,0.00028356,4]
[362113856,1748002289666,-420.0,0.00028356,4]
[362113857,1748002289677,-420.0,0.00028356,4]
[362113858,1748002289687,-420.0,0.00028356,4]
[362113859,1748002289697,-509.08,0.00028356,4]
[362113860,1748002289709,-420.0,0.00028356,4]
[362113861,1748002289720,-420.0,0.00028356,2]
[362113862,1748002289732,-362.95,0.00028356,4]
[362113863,1748002289744,-567.42,0.00028356,4]
[362113864,1748002289759,-420.0,0.00028356,4]
[362113865,1748002289777,-420.0,0.00028356,4]
[362113866,1748002289789,-420.0,0.00028356,4]
[362113867,1748002289802,-420.0,0.00028356,4]
[362113868,1748002289814,-396.531783,0.00028356,4]
[362113869,1748002289826,-1068.14,0.00028356,4]
[362113870,1748002289838,-420.0,0.00028356,4]
[362113871,1748002289850,-420.0,0.00028356,4]
[362113872,1748002289861,-420.0,0.00028356,4]
[362113873,1748002289871,-420.0,0.00028356,4]
[362113874,1748002289882,-420.0,0.00028356,4]
[362113875,1748002289893,-567.56927222,0.00028356,4]
[362113876,1748002289903,-636.93,0.00028356,4]
[362113877,1748002289915,-420.0,0.00028356,4]
[362113878,1748002289926,-420.0,0.00028356,4]
[362113879,1748002289937,-420.0,0.00028356,4]
[362113880,1748002289947,-400.21449582,0.00028356,4]
[362113881,1748002289957,-1034.39,0.00028356,4]
[362113882,1748002289967,-420.0,0.00028356,4]
[362113883,1748002289977,-222.926913,0.00028356,4]
[362113884,1748002289988,-420.0,0.00028356,4]
[362113885,1748002289998,-420.0,0.00028356,2]
[362113886,1748002290015,-745.56,0.00028356,4]
[362113887,1748002290025,-420.0,0.00028356,4]
[362113888,1748002290036,-420.0,0.00028356,4]
[362113889,1748002290046,-1524.57815,0.0002839,2]
[362113890,1748002290057,-500.0,0.00028459,7]
[362113891,1748002290068,-420.0,0.00028493,4]
[362113892,1748002290077,-420.0,0.00028493,4]
[362113893,1748002290087,-420.0,0.00028493,4]
[362113894,1748002290097,-420.0,0.00028493,4]
[362113895,1748002290107,-358.55,0.00028493,4]
[362113896,1748002290117,-565.27678384,0.00028493,4]
[362113897,1748002290127,-271.73,0.00028493,4]
[362113898,1748002290137,-420.0,0.00028493,4]
[362113899,1748002290146,-420.0,0.00028493,4]
[362113900,1748002290156,-420.0,0.00028493,4]
[362113901,1748002290165,-420.0,0.00028493,4]
[362113902,1748002290176,-420.0,0.00028493,4]
[362113903,1748002290185,-261.53715524,0.00028493,4]
[362113904,1748002290195,-420.0,0.00028493,4]
[362113905,1748002290205,-420.0,0.00028493,4]
[362113906,1748002290215,-265.81,0.00028493,4]
[362113907,1748002290225,-461.06113259,0.00028493,4]
[362113908,1748002290236,-699.81,0.00028493,4]
[362113909,1748002290246,-934.23,0.00028493,4]
[362113910,1748002290260,-420.0,0.00028493,4]
[362113911,1748002290269,-469.89,0.00028493,4]
[362113912,1748002290280,-276.86,0.00028493,4]
[362113913,1748002290291,-384.66,0.00028493,4]
[362113914,1748002290301,-254.66,0.00028493,4]
[362113915,1748002290311,-420.0,0.00028493,4]
[362113916,1748002290321,-420.0,0.00028493,4]
[362113917,1748002290331,-420.0,0.00028493,4]
[362113918,1748002290341,-420.0,0.00028493,4]
[362113919,1748002290351,-255.7,0.00028493,4]
[362113920,1748002290362,-377.17,0.00028493,4]
[362113921,1748002290372,-420.0,0.00028493,4]
[362113922,1748002290382,-765.64,0.00028493,4]
[362113923,1748002290392,-420.0,0.00028493,4]
[362113924,1748002290403,-405.36,0.00028493,4]
[362113925,1748002290413,-420.0,0.00028493,4]
[362113926,1748002290423,-420.0,0.00028493,4]
[362113927,1748002290433,-306.69,0.00028493,4]
[362113928,1748002290443,-420.0,0.00028493,4]
[362113929,1748002290453,-420.0,0.00028493,4]
[362113930,1748002290464,-420.0,0.00028493,4]
[362113931,1748002290474,-500.24968919,0.00028493,4]
[362113932,1748002290484,-420.0,0.00028493,4]
[362113933,1748002290560,-157.9,0.00028493,4]
[362113934,1748002290570,-420.0,0.00028493,4]
[362113935,1748002290579,-420.0,0.00028493,4]
[362113936,1748002290589,-420.0,0.00028493,4]
[362113937,1748002290599,-303.71968404,0.00028493,4]
[362113938,1748002290610,-420.0,0.00028493,4]
[362113939,1748002290620,-420.0,0.00028493,4]
[362113940,1748002290629,-379.94,0.00028493,4]
[362113941,1748002290641,-420.0,0.00028493,4]
[362113942,1748002290651,-1213.63,0.00028493,4]
[362113943,1748002290661,-279.49,0.00028493,4]
[362113944,1748002290670,-2301.13,0.00028493,4]
[362113945,1748002290679,-420.0,0.00028493,4]
[362113946,1748002290689,-420.0,0.00028493,4]
[362113947,1748002290698,-2104.51,0.00028493,4]
[362113948,1748002290708,-1056.15,0.00028493,4]
[362113949,1748002290718,-420.0,0.00028493,4]
[362113950,1748002290728,-1235.93,0.00028493,4]
[362113951,1748002290738,-514.05736805,0.00028493,4]
[362113952,1748002290747,-420.0,0.00028493,4]
[362113953,1748002290762,-420.0,0.00028493,4]
[362113954,1748002290772,-820.55,0.00028493,4]
[362113955,1748002290781,-420.0,0.00028493,4]
[362113956,1748002290791,-2942.65,0.00028493,4]
[362113957,1748002290802,-3091.64,0.00028493,4]
[362113958,1748002290812,-210.8,0.00028493,4]
[362113959,1748002290822,-824.71,0.00028493,4]
[362113960,1748002290834,-1143.69,0.00028493,2]
[362113961,1748002290844,-420.0,0.00028493,4]
[362113962,1748002290853,-420.0,0.00028493,4]
[362113963,1748002290862,-589.55,0.00028493,4]
[362113964,1748002290872,-930.62,0.00028493,4]
[362113965,1748002290882,-420.0,0.00028493,4]
[362113966,1748002290891,-420.0,0.00028493,4]
[362113967,1748002290901,-500.0,0.00028493,2]
[362113968,1748002290910,-420.0,0.00028493,4]
[362113969,1748002290920,-500.0,0.00028493,2]
[362113970,1748002290930,-500.0,0.00028493,2]
[362113971,1748002290939,-1759.35,0.00028493,4]
[362113972,1748002290949,-500.0,0.00028493,2]
[362113973,1748002290958,-500.0,0.00028493,2]
[362113974,1748002290967,-500.0,0.00028493,2]
[362113975,1748002290977,-514.0,0.00028493,2]
[362113976,1748002290987,-420.0,0.00028493,4]
[362113977,1748002290997,-420.0,0.00028493,4]
[362113978,1748002291011,-420.0,0.00028493,4]
[362113979,1748002291021,-246.0,0.00028493,4]
[362113980,1748002291031,-420.0,0.00028493,4]
[362113981,1748002291041,-420.0,0.00028493,4]
[362113982,1748002291051,-420.0,0.00028493,4]
[362113983,1748002291062,-420.0,0.00028493,4]
[362113984,1748002291072,-420.0,0.00028493,4]
[362113985,1748002291082,-420.0,0.00028493,4]
[362113986,1748002291093,-494.39,0.00028493,4]
[362113987,1748002291103,-2941.71,0.00028493,4]
[362113988,1748002291113,-737.93,0.00028493,4]
[362113989,1748002291123,-420.0,0.00028493,4]
[362113990,1748002291134,-420.0,0.00028493,4]
[362113991,1748002291144,-214.24,0.00028493,4]
[362113992,1748002291154,-420.0,0.00028493,4]
[362113993,1748002291164,-420.0,0.00028493,4]
[362113994,1748002291174,-719.56,0.00028493,4]
[362113995,1748002291184,-531.46,0.00028493,4]
[362113996,1748002291195,-420.0,0.00028493,4]
[362113997,1748002291204,-420.0,0.00028493,4]
[362113998,1748002291214,-337.14,0.00028493,4]
[362113999,1748002291224,-420.0,0.00028493,4]
[362114000,1748002291234,-1548.3,0.00028493,2]
[362114001,1748002291244,-586.0,0.00028493,4]
[362114002,1748002291259,-7122.89,0.00028493,4]
[362114003,1748002291270,-420.0,0.00028493,4]
[362114004,1748002291280,-420.0,0.00028493,4]
[362114005,1748002291290,-420.0,0.00028493,4]
[362114006,1748002291300,-420.0,0.00028493,4]
[362114007,1748002291309,-420.0,0.00028493,4]
[362114008,1748002291319,-420.0,0.00028493,4]
[362114009,1748002291329,-420.0,0.00028493,4]
[362114010,1748002291338,-420.0,0.00028493,4]
[362114011,1748002291348,-420.0,0.00028493,2]
[362114012,1748002291358,-420.0,0.00028493,4]
[362114013,1748002291368,-420.0,0.00028493,4]
[362114014,1748002291378,-420.0,0.00028493,4]
[362114015,1748002291389,-1068.14,0.00028493,4]
[362114016,1748002291399,-273.47,0.00028493,4]
[362114017,1748002291409,-420.0,0.00028493,4]
[362114018,1748002291419,-420.0,0.00028493,4]
[362114019,1748002291428,-420.0,0.00028493,4]
[362114020,1748002291438,-420.0,0.00028493,4]
[362114021,1748002291447,-636.93,0.00028493,4]
[362114022,1748002291457,-238.62,0.00028493,4]
[362114023,1748002291466,-420.0,0.00028493,4]
[362114024,1748002291475,-364.69,0.00028493,4]
[362114025,1748002291485,-420.0,0.00028493,4]
[362114026,1748002291495,-1034.39,0.00028493,4]
[362114027,1748002291509,-420.0,0.00028493,4]
[362114028,1748002291519,-420.0,0.00028493,2]
[362114029,1748002291529,-745.56,0.00028493,4]
[362114030,1748002291539,-420.0,0.00028493,4]
[362114031,1748002291549,-420.0,0.00028493,4]
[362114032,1748002291560,-474.9177,0.000285,2]
[362114033,1748002291576,-167.62513039,0.00028523,2]
[362114034,1748002291586,-151.0,0.0002853,7]
[362114035,1748002291596,-10498.32057604,0.00028591,2]
[362114036,1748002291605,-6893.64930074,0.00028621,2]
[362114037,1748002291615,-420.0,0.0002863,4]
[362114038,1748002291625,-427.77,0.0002863,4]
[362114039,1748002291635,-420.0,0.0002863,4]
[362114040,1748002291645,-420.0,0.0002863,4]
[362114041,1748002291655,-420.0,0.0002863,4]
[362114042,1748002291666,-444.85787533,0.0002863,4]
[362114043,1748002291675,-420.0,0.0002863,4]
[362114044,1748002291686,-420.0,0.0002863,4]
[362114045,1748002291695,-289.40412964,0.0002863,4]
[362114046,1748002291705,-420.0,0.0002863,4]
[362114047,1748002291715,-407.05850583,0.0002863,4]
[362114048,1748002291725,-699.81,0.0002863,4]
[362114049,1748002291735,-934.23,0.0002863,4]
[362114050,1748002291744,-420.0,0.0002863,4]
[362114051,1748002291755,-420.0,0.0002863,4]
[362114052,1748002291765,-420.0,0.0002863,4]
[362114053,1748002291779,-420.0,0.0002863,4]
[362114054,1748002291789,-420.0,0.0002863,4]
[362114055,1748002291800,-420.0,0.0002863,4]
[362114056,1748002291810,-765.64,0.0002863,4]
[362114057,1748002291820,-420.0,0.0002863,4]
[362114058,1748002291830,-514.38701406,0.0002863,4]
[362114059,1748002291840,-420.0,0.0002863,4]
[362114060,1748002291851,-420.0,0.0002863,4]
[362114061,1748002291862,-420.0,0.0002863,4]
[362114062,1748002291872,-489.9,0.0002863,4]
[362114063,1748002291882,-420.0,0.0002863,4]
[362114064,1748002291892,-420.0,0.0002863,4]
[362114065,1748002291903,-420.0,0.0002863,4]
[362114066,1748002291913,-531.33,0.0002863,4]
[362114067,1748002291923,-497.63,0.0002863,4]
[362114068,1748002291932,-290.18,0.0002863,4]
[362114069,1748002291943,-420.0,0.0002863,4]
[362114070,1748002291952,-1213.63,0.0002863,4]
[362114071,1748002291962,-2301.13,0.0002863,4]
[362114072,1748002291972,-420.0,0.0002863,4]
[362114073,1748002291982,-420.0,0.0002863,4]
[362114074,1748002291993,-2104.51,0.0002863,4]
[362114075,1748002292006,-1056.15,0.0002863,4]
[362114076,1748002292016,-420.0,0.0002863,4]
[362114077,1748002292025,-1235.93,0.0002863,4]
[362114078,1748002292034,-420.0,0.0002863,4]
[362114079,1748002292044,-420.0,0.0002863,4]
[362114080,1748002292053,-820.55,0.0002863,4]
[362114081,1748002292063,-420.0,0.0002863,4]
[362114082,1748002292072,-2942.65,0.0002863,4]
[362114083,1748002292082,-3091.64,0.0002863,4]
[362114084,1748002292092,-824.71,0.0002863,4]
[362114085,1748002292101,-1143.69,0.0002863,2]
[362114086,1748002292111,-420.0,0.0002863,4]
[362114087,1748002292120,-420.0,0.0002863,4]
[362114088,1748002292129,-589.55,0.0002863,4]
[362114089,1748002292139,-930.62,0.0002863,4]
[362114090,1748002292147,-420.0,0.0002863,4]
[362114091,1748002292157,-359.36,0.0002863,4]
[362114092,1748002292166,-420.0,0.0002863,4]
[362114093,1748002292175,-1759.35,0.0002863,4]
[362114094,1748002292185,-342.84,0.0002863,4]
[362114095,1748002292194,-420.0,0.0002863,4]
[362114096,1748002292203,-420.0,0.0002863,4]
[362114097,1748002292213,-420.0,0.0002863,4]
[362114098,1748002292222,-545.69,0.0002863,4]
[362114099,1748002292233,-420.0,0.0002863,4]
[362114100,1748002292246,-384.55130337,0.0002863,4]
[362114101,1748002292258,-420.0,0.0002863,4]
[362114102,1748002292267,-420.0,0.0002863,4]
[362114103,1748002292276,-494.39,0.0002863,4]
[362114104,1748002292286,-2941.71,0.0002863,4]
[362114105,1748002292297,-737.93,0.0002863,4]
[362114106,1748002292306,-420.0,0.0002863,4]
[362114107,1748002292315,-485.63,0.0002863,4]
[362114108,1748002292325,-420.0,0.0002863,4]
[362114109,1748002292334,-420.0,0.0002863,4]
[362114110,1748002292343,-719.56,0.0002863,4]
[362114111,1748002292353,-420.0,0.0002863,4]
[362114112,1748002292362,-307.05124516,0.0002863,4]
[362114113,1748002292371,-542.93,0.0002863,4]
[362114114,1748002292381,-1548.3,0.0002863,2]
[362114115,1748002292390,-586.0,0.0002863,4]
[362114116,1748002292400,-7122.89,0.0002863,4]
[362114117,1748002292409,-420.0,0.0002863,4]
[362114118,1748002292418,-248.01572272,0.0002863,4]
[362114119,1748002292427,-420.0,0.0002863,4]
[362114120,1748002292436,-420.0,0.0002863,4]
[362114121,1748002292445,-420.0,0.0002863,4]
[362114122,1748002292454,-420.0,0.0002863,4]
[362114123,1748002292464,-420.0,0.0002863,4]
[362114124,1748002292473,-420.0,0.0002863,4]
[362114125,1748002292483,-420.0,0.0002863,2]
[362114126,1748002292492,-214.0,0.0002863,4]
[362114127,1748002292502,-420.0,0.0002863,4]
[362114128,1748002292513,-420.0,0.0002863,4]
[362114129,1748002292522,-1068.14,0.0002863,4]
[362114130,1748002292531,-420.0,0.0002863,4]
[362114131,1748002292540,-492.8,0.0002863,4]
[362114132,1748002292549,-420.0,0.0002863,4]
[362114133,1748002292559,-420.0,0.0002863,4]
[362114134,1748002292568,-636.93,0.0002863,4]
[362114135,1748002292577,-420.0,0.0002863,4]
[362114136,1748002292586,-1034.39,0.0002863,4]
[362114137,1748002292595,-420.0,0.0002863,4]
[362114138,1748002292604,-420.0,0.0002863,4]
[362114139,1748002292614,-420.0,0.0002863,2]
[362114140,1748002292623,-745.56,0.0002863,4]
[362114141,1748002292633,-420.0,0.0002863,4]
[362114142,1748002292642,-240.16,0.0002863,4]
[362114143,1748002292652,-677.42,0.00028748,2]
[362114144,1748002292662,-500.0,0.00028766,2]
[362114145,1748002292671,-495.03,0.00028767,4]
[362114146,1748002292681,-420.0,0.00028767,4]
[362114147,1748002292690,-420.0,0.00028767,4]
[362114148,1748002292700,-420.0,0.00028767,4]
[362114149,1748002292709,-420.0,0.00028767,4]
[362114150,1748002292719,-420.0,0.00028767,4]
[362114151,1748002292728,-500.0,0.00028767,2]
[362114152,1748002292737,-428.15414092,0.00028767,2]
[362114153,1748002292746,-420.0,0.00028767,4]
[362114154,1748002292759,-699.81,0.00028767,4]
[362114155,1748002292771,-934.23,0.00028767,4]
[362114156,1748002292780,-515.85,0.00028767,4]
[362114157,1748002292789,-479.23,0.00028767,4]
[362114158,1748002292798,-420.0,0.00028767,4]
[362114159,1748002292809,-420.0,0.00028767,4]
[362114160,1748002292819,-420.0,0.00028767,4]
[362114161,1748002292828,-420.0,0.00028767,4]
[362114162,1748002292838,-765.64,0.00028767,4]
[362114163,1748002292850,-460.89,0.00028767,4]
[362114164,1748002292859,-360.69,0.00028767,4]
[362114165,1748002292869,-311.38,0.00028767,4]
[362114166,1748002292878,-420.0,0.00028767,4]
[362114167,1748002292888,-420.0,0.00028767,4]
[362114168,1748002292897,-420.0,0.00028767,4]
[362114169,1748002292907,-212.69672612,0.00028767,4]
[362114170,1748002292917,-420.0,0.00028767,4]
[362114171,1748002292926,-1213.63,0.00028767,4]
[362114172,1748002292936,-2301.13,0.00028767,4]
[362114173,1748002292946,-420.0,0.00028767,4]
[362114174,1748002292955,-420.0,0.00028767,4]
[362114175,1748002292964,-2104.51,0.00028767,4]
[362114176,1748002292974,-1056.15,0.00028767,4]
[362114177,1748002292983,-420.0,0.00028767,4]
[362114178,1748002292993,-1235.93,0.00028767,4]
[362114179,1748002293005,-360.4012635,0.00028767,4]
[362114180,1748002293015,-420.0,0.00028767,4]
[362114181,1748002293026,-820.55,0.00028767,4]
[362114182,1748002293036,-420.0,0.00028767,4]
[362114183,1748002293046,-2942.65,0.00028767,4]
[362114184,1748002293056,-3091.64,0.00028767,4]
[362114185,1748002293066,-824.71,0.00028767,4]
[362114186,1748002293076,-1143.69,0.00028767,2]
[362114187,1748002293086,-420.0,0.00028767,4]
[362114188,1748002293096,-420.0,0.00028767,4]
[362114189,1748002293107,-589.55,0.00028767,4]
[362114190,1748002293117,-930.62,0.00028767,4]
[362114191,1748002293126,-420.0,0.00028767,4]
[362114192,1748002293136,-220.64,0.00028767,4]
[362114193,1748002293146,-1759.35,0.00028767,4]
[362114194,1748002293155,-420.0,0.00028767,4]
[362114195,1748002293165,-420.0,0.00028767,4]
[362114196,1748002293175,-420.0,0.00028767,4]
[362114197,1748002293185,-420.0,0.00028767,4]
[362114198,1748002293195,-420.0,0.00028767,4]
[362114199,1748002293205,-318.77,0.00028767,4]
[362114200,1748002293215,-494.39,0.00028767,4]
[362114201,1748002293226,-2941.71,0.00028767,4]
[362114202,1748002293236,-737.93,0.00028767,4]
[362114203,1748002293245,-420.0,0.00028767,4]
[362114204,1748002293259,-155.03,0.00028767,4]
[362114205,1748002293269,-420.0,0.00028767,4]
[362114206,1748002293279,-719.56,0.00028767,4]
[362114207,1748002293289,-420.0,0.00028767,4]
[362114208,1748002293299,-1548.3,0.00028767,2]
[362114209,1748002293309,-586.0,0.00028767,4]
[362114210,1748002293319,-7122.89,0.00028767,4]
[362114211,1748002293329,-420.0,0.00028767,4]
[362114212,1748002293339,-420.0,0.00028767,4]
[362114213,1748002293348,-420.0,0.00028767,4]
[362114214,1748002293358,-420.0,0.00028767,4]
[362114215,1748002293368,-549.81,0.00028767,4]
[362114216,1748002293378,-420.0,0.00028767,4]
[362114217,1748002293388,-420.0,0.00028767,4]
[362114218,1748002293399,-420.0,0.00028767,2]
[362114219,1748002293408,-520.48065784,0.00028767,4]
[362114220,1748002293418,-420.0,0.00028767,4]